bitfinex/quotes_BTCUSD_20250512
["timestamp","ask_amount","ask_price","bid_price","bid_amount"]
[1747058566520,0.02018234,104260.0,104250.0,1.13088994]
[1747058566734,0.01059067,104260.0,104250.0,1.15578162]
[1747058566972,0.001,104260.0,104250.0,1.15578162]
[1747058567186,0.02018161,104260.0,104250.0,1.15578162]
[1747058567401,0.001,104260.0,104250.0,1.15578162]
[1747058567634,0.001,104260.0,104250.0,1.17178162]
[1747058568041,0.01059067,104260.0,104250.0,1.17178162]
[1747058568240,0.02977246,104260.0,104250.0,1.27312162]
[1747058568449,0.02018143,104260.0,104250.0,1.27304122]
[1747058568874,0.02977228,104260.0,104250.0,1.27304122]
[1747058569315,0.21201028,104260.0,104250.0,0.97882536]
[1747058569550,0.21201028,104260.0,104250.0,1.2730014]
[1747058569963,0.22160159,104260.0,104250.0,1.28259317]
[1747058570204,0.22160159,104260.0,104250.0,1.2730014]
[1747058570424,0.22160159,104260.0,104250.0,1.28259317]
[1747058571388,0.02018216,104260.0,104250.0,1.29218485]
[1747058571615,0.22160159,104260.0,104250.0,1.29218485]
[1747058571847,0.02977283,104260.0,104250.0,1.02678485]
[1747058572070,0.001,104260.0,104250.0,1.30894485]
[1747058573076,0.01059067,104260.0,104250.0,1.30894485]
[1747058573302,0.01059057,104260.0,104250.0,1.30894485]
[1747058573659,0.02977209,104260.0,104250.0,1.29214485]
[1747058573799,0.02018124,104260.0,104250.0,1.69214485]
[1747058574021,0.02018124,104260.0,104250.0,1.70894485]
[1747058574458,0.029772,104260.0,104250.0,1.69214485]
[1747058574873,0.04895398,104260.0,104250.0,1.69214485]
[1747058575100,0.02977274,104260.0,104250.0,1.27292113]
[1747058575336,0.03936396,104260.0,104250.0,1.27292113]
[1747058575570,0.02018161,104260.0,104250.0,1.27292113]
[1747058575834,0.03936377,104260.0,104250.0,1.27292113]
[1747058576043,0.04895508,104260.0,104250.0,1.27292113]
[1747058576256,0.23119244,104260.0,104250.0,1.27292113]
[1747058576507,0.02977301,104260.0,104250.0,1.27292113]
[1747058576658,0.02018179,104260.0,104250.0,1.27292113]
[1747058577353,0.001,104260.0,104250.0,1.27292113]
[1747058577582,0.001,104260.0,104250.0,1.28832113]
[1747058577803,0.02018133,104260.0,104250.0,1.27292113]
[1747058578019,0.02018133,104260.0,104250.0,1.67292113]
[1747058578236,0.001,104260.0,104250.0,1.67292113]
[1747058578469,0.001,104260.0,104250.0,1.68852113]
[1747058580005,0.01059057,104260.0,104250.0,1.68852113]
[1747058580217,0.001,104260.0,104250.0,1.68852113]
[1747058583288,0.001,104260.0,104250.0,1.90329253]
[1747058584156,0.00958919,104280.0,104270.0,0.22058034]
[1747058584327,0.13421117,104280.0,104270.0,0.89192042]
[1747058584521,0.31641358,104280.0,104270.0,0.53227532]
[1747058584697,0.30682439,104280.0,104270.0,0.54186571]
[1747058584900,0.30682439,104280.0,104270.0,0.55145592]
[1747058585115,0.11503306,104280.0,104270.0,0.57063587]
[1747058585315,0.12462198,104280.0,104270.0,0.57063587]
[1747058585981,0.03835631,104280.0,104270.0,0.57063587]
[1747058586146,0.27027306,104290.0,104280.0,0.21096999]
[1747058586147,0.02117655,104290.0,104280.0,0.21096999]
[1747058586375,0.23212604,104290.0,104280.0,0.87272042]
[1747058586571,0.21294995,104290.0,104280.0,0.87272042]
[1747058586773,0.21996158,104290.0,104270.0,0.21098931]
[1747058586974,0.20336158,104290.0,104280.0,0.85354157]
[1747058587177,0.20336158,104290.0,104280.0,0.86313095]
[1747058587840,0.2013808,104280.0,104270.0,0.67368011]
[1747058588047,0.31471533,104290.0,104280.0,0.2013808]
[1747058588247,0.0211759,104290.0,104280.0,1.01458915]
[1747058588451,0.0307639,104290.0,104280.0,1.01458915]
[1747058588954,0.04994073,104290.0,104280.0,1.01458915]
[1747058589174,0.23212586,104290.0,104280.0,1.01458915]
[1747058589400,0.24171514,104290.0,104280.0,1.02430782]
[1747058589529,0.24271514,104290.0,104280.0,1.024308]
[1747058589756,0.03176501,104290.0,104280.0,1.03389692]
[1747058589954,0.01258791,104290.0,104280.0,1.03389692]
[1747058590161,0.00897055,104300.0,104290.0,0.22053776]
[1747058590365,0.00897055,104300.0,104290.0,0.882288]
[1747058590569,0.00897055,104300.0,104290.0,1.239188]
[1747058590783,0.03075876,104310.0,104300.0,0.22051662]
[1747058591002,0.03075876,104310.0,104300.0,0.68367174]
[1747058591195,0.04931593,104310.0,104300.0,0.68367174]
[1747058591394,0.33492269,104310.0,104300.0,0.46311512]
[1747058591598,0.00958827,104290.0,104280.0,1.09804323]
[1747058591854,0.01917591,104290.0,104280.0,1.92033665]
[1747058592059,0.02876409,104290.0,104280.0,2.32033665]
[1747058592321,0.01917591,104290.0,104280.0,2.32033665]
[1747058592523,0.019176,104290.0,104280.0,2.32033665]
[1747058592654,0.00958791,104290.0,104280.0,2.32033665]
[1747058592872,0.22053776,104290.0,104280.0,2.15932962]
[1747058593084,0.2205384,104290.0,104280.0,2.29152962]
[1747058593299,0.21095013,104290.0,104280.0,1.81886512]
[1747058593548,0.02876464,104290.0,104280.0,2.31070773]
[1747058593759,0.0383531,104290.0,104280.0,2.30111881]
[1747058593987,0.23012668,104290.0,104280.0,2.30111872]
[1747058594415,0.03835374,104290.0,104280.0,2.31070773]
[1747058594622,0.21094977,104290.0,104280.0,0.34971867]
[1747058594855,0.21094977,104290.0,104270.0,0.80315512]
[1747058594856,0.20138089,104280.0,104270.0,0.80315512]
[1747058595296,0.21708089,104280.0,104270.0,0.80315512]
[1747058595530,0.31293519,104280.0,104270.0,0.67087512]
[1747058595738,0.32953519,104280.0,104270.0,0.33087512]
[1747058596161,0.32953519,104280.0,104270.0,0.33287512]
[1747058596391,0.40603531,104280.0,104270.0,0.002]
[1747058597008,0.88373128,104280.0,104270.0,0.002]
[1747058597227,0.23290002,104270.0,104260.0,0.002]
[1747058597424,0.34329517,104270.0,104260.0,0.002]
[1747058597883,1.62517029,104270.0,104260.0,0.002]
[1747058598129,0.23347731,104230.0,104220.0,0.002]
[1747058598363,0.23347731,104230.0,104220.0,0.342]
[1747058598364,0.32933161,104230.0,104220.0,0.342]
[1747058598590,0.32933161,104230.0,104220.0,0.33287512]
[1747058598829,0.31313161,104230.0,104220.0,0.67287512]
[1747058599053,0.30692531,104230.0,104220.0,0.002]
[1747058599698,0.30692531,104230.0,104220.0,0.004]
[1747058599907,0.30692531,104230.0,104220.0,0.344]
[1747058600552,0.34022531,104230.0,104220.0,0.344]
[1747058600984,0.34022531,104230.0,104220.0,0.004]
[1747058601227,0.34022531,104230.0,104220.0,0.005]
[1747058601813,0.60462531,104230.0,104220.0,0.005]
[1747058601957,0.60462531,104230.0,104220.0,0.003]
[1747058602811,0.60462531,104230.0,104220.0,0.002]
[1747058603222,0.60762531,104230.0,104220.0,0.002]
[1747058603642,0.61162531,104230.0,104220.0,0.002]
[1747058603860,0.71062434,104230.0,104220.0,0.002]
[1747058604059,0.62162531,104230.0,104220.0,0.002]
[1747058604269,1.72336529,104230.0,104220.0,0.002]
[1747058604480,0.21111152,104210.0,104200.0,0.002]
[1747058604687,1.0657515,104210.0,104200.0,0.00214664]
[1747058604891,1.6474601,104210.0,104200.0,0.00214664]
[1747058605099,0.01919873,104170.0,104160.0,0.002]
[1747058605301,0.33934688,104170.0,104160.0,0.002]
[1747058606296,0.60374688,104170.0,104160.0,0.002]
[1747058606456,0.60374688,104170.0,104160.0,0.64170032]
[1747058606457,0.30704688,104170.0,104160.0,0.64170032]
[1747058606676,0.31664648,104170.0,104160.0,0.65130093]
[1747058606875,0.31664648,104170.0,104160.0,0.44968804]
[1747058607084,0.29744775,104170.0,104160.0,0.44968804]
[1747058607305,0.00959849,104180.0,104170.0,0.22077378]
[1747058607516,0.12464903,104180.0,104170.0,0.66797291]
[1747058607735,0.21115075,104200.0,104190.0,0.20155466]
[1747058607962,0.30700505,104200.0,104190.0,0.44719913]
[1747058608182,0.20155466,104190.0,104180.0,0.78719913]
[1747058608401,0.201574,104180.0,104170.0,0.78919913]
[1747058608614,0.30702679,104180.0,104170.0,0.98119298]
[1747058608889,0.2974283,104180.0,104170.0,0.78919913]
[1747058609133,0.2974283,104180.0,104170.0,0.44919913]
[1747058609562,0.2974283,104180.0,104170.0,0.45019913]
[1747058609787,0.3142283,104180.0,104170.0,0.001]
[1747058610008,0.3305283,104180.0,104170.0,0.001]
[1747058610220,0.6705283,104180.0,104170.0,0.001]
[1747058610449,0.6542283,104180.0,104170.0,0.001]
[1747058610655,0.6374283,104180.0,104170.0,0.44819913]
[1747058610864,0.6374283,104180.0,104170.0,0.44919913]
[1747058611093,0.55117277,104180.0,104170.0,0.44919913]
[1747058611359,0.55117277,104180.0,104170.0,0.44819913]
[1747058611545,0.191957,104190.0,104170.0,0.66899094]
[1747058611760,0.22177034,104180.0,104170.0,0.21119277]
[1747058611959,0.22177034,104180.0,104170.0,0.220792]
[1747058612175,0.001,104180.0,104170.0,0.236692]
[1747058612402,0.20153467,104200.0,104190.0,0.21113937]
[1747058612636,0.23032434,104200.0,104190.0,0.21113937]
[1747058612856,0.23992108,104200.0,104190.0,0.69343317]
[1747058613355,0.02878875,104200.0,104190.0,1.1502295]
[1747058613585,0.00959619,104200.0,104190.0,1.12143763]
[1747058613813,0.0095961,104200.0,104190.0,1.12143689]
[1747058614300,0.23030343,104210.0,104200.0,0.20153549]
[1747058614492,0.22070789,104210.0,104200.0,1.10553058]
[1747058614719,0.21111207,104210.0,104200.0,0.89439826]
[1747058614910,0.21111207,104210.0,104200.0,0.44719913]
[1747058615137,0.21111207,104210.0,104200.0,0.6391377]
[1747058615351,0.21111143,104210.0,104200.0,1.1151265]
[1747058615574,0.23044264,104210.0,104200.0,1.13092668]
[1747058615791,0.00014041,104210.0,104200.0,1.13192668]
[1747058615988,0.00014041,104210.0,104200.0,1.15772296]
[1747058616197,0.23028051,104220.0,104210.0,0.23650743]
[1747058616427,0.22068616,104220.0,104210.0,0.67411111]
[1747058616634,0.20149682,104220.0,104210.0,0.44719913]
[1747058617120,0.29735112,104220.0,104210.0,0.44719913]
[1747058618170,0.20149682,104220.0,104210.0,0.64871511]
[1747058618402,0.22068533,104220.0,104210.0,0.65831074]
[1747058618630,0.0383783,104220.0,104210.0,0.6848061]
[1747058618811,0.22168625,104220.0,104210.0,0.67521074]
[1747058619055,0.22168625,104220.0,104210.0,0.68480619]
[1747058619245,0.22168561,104220.0,104210.0,0.68480619]
[1747058619450,0.02018897,104220.0,104210.0,0.69440164]
[1747058619654,0.001,104220.0,104210.0,1.01521074]
[1747058619856,0.01918897,104220.0,104210.0,1.0248061]
[1747058620066,0.22068561,104220.0,104210.0,1.14717074]
[1747058620234,0.22068561,104220.0,104210.0,1.15676628]
[1747058620436,0.23028069,104220.0,104210.0,1.15676628]
[1747058620816,0.22068561,104220.0,104210.0,1.15676628]
[1747058621023,0.03078083,104230.0,104220.0,0.22769163]
[1747058621229,0.23225823,104230.0,104220.0,0.79725595]
[1747058621457,0.01159361,104230.0,104220.0,0.80685094]
[1747058621665,0.01918529,104240.0,104230.0,0.22677082]
[1747058622005,0.22064391,104240.0,104230.0,0.68356421]
[1747058622205,0.22064391,104240.0,104230.0,0.6835643]
[1747058622418,0.22064391,104240.0,104230.0,0.67397051]
[1747058622419,0.22078452,104240.0,104230.0,0.67397051]
[1747058622582,0.21119174,104240.0,104230.0,0.57911913]
[1747058623599,0.00014061,104240.0,104230.0,0.79019051]
[1747058623755,0.23996944,104240.0,104230.0,0.8161843]
[1747058623980,0.03851211,104240.0,104230.0,0.82677782]
[1747058624223,0.23037776,104240.0,104230.0,0.826778]
[1747058624453,0.21119064,104240.0,104230.0,0.70998517]
[1747058624661,0.02891859,104240.0,104230.0,1.16777791]
[1747058624889,0.02891859,104240.0,104230.0,1.13899662]
[1747058624890,0.23037721,104240.0,104230.0,1.13899662]
[1747058625101,0.30704604,104240.0,104230.0,0.002]
[1747058625326,0.39914616,104240.0,104230.0,0.002]
[1747058625751,0.41554616,104240.0,104230.0,0.002]
[1747058626608,0.33904604,104240.0,104230.0,0.002]
[1747058627286,0.33904604,104240.0,104230.0,0.001]
[1747058627774,0.21109126,104220.0,104210.0,0.44719913]
[1747058628005,0.30694556,104220.0,104210.0,0.44719913]
[1747058628941,0.20151598,104210.0,104200.0,0.002]
[1747058629070,0.29737028,104210.0,104200.0,0.002]
[1747058629479,0.29737028,104210.0,104200.0,0.44919913]
[1747058630576,0.31327028,104210.0,104200.0,0.002]
[1747058630784,0.32907028,104210.0,104200.0,0.002]
[1747058631210,0.32907028,104210.0,104200.0,0.005]
[1747058631211,0.70361113,104210.0,104200.0,0.005]
[1747058631417,1.00361113,104210.0,104200.0,0.007]
[1747058631646,1.00361113,104210.0,104200.0,0.004]
[1747058631856,1.4679432,104210.0,104200.0,0.002]
[1747058632047,0.22739258,104170.0,104160.0,0.002]
[1747058632316,0.33924688,104170.0,104160.0,0.002]
[1747058632970,0.32324688,104170.0,104160.0,0.002]
[1747058633218,0.31664583,104170.0,104160.0,0.65081202]
[1747058633444,0.00959729,104190.0,104170.0,0.20749385]
[1747058633660,0.02879464,104180.0,104170.0,0.56669184]
[1747058633881,0.12464709,104190.0,104180.0,0.22077089]
[1747058634090,0.01919339,104200.0,104190.0,0.20154001]
[1747058634294,0.01919477,104190.0,104180.0,0.57626988]
[1747058634496,0.01919477,104190.0,104180.0,0.55707409]
[1747058634497,0.2303471,104190.0,104180.0,0.55707409]
[1747058634700,0.23034737,104190.0,104180.0,0.57627098]
[1747058634904,0.23034737,104190.0,104180.0,1.02347011]
[1747058635109,0.22074999,104190.0,104180.0,0.80269913]
[1747058635317,0.21115251,104190.0,104180.0,0.98877322]
[1747058635537,0.21115251,104190.0,104180.0,0.78819913]
[1747058635745,0.20155485,104190.0,104180.0,0.341]
[1747058636167,0.29740915,104190.0,104180.0,0.341]
[1747058636344,0.29740915,104190.0,104180.0,0.002]
[1747058636773,0.31270915,104190.0,104180.0,0.002]
[1747058636938,0.47525,104190.0,104180.0,0.002]
[1747058637348,0.32870915,104190.0,104180.0,0.002]
[1747058637555,0.32870915,104190.0,104180.0,0.001]
[1747058637556,0.31270915,104190.0,104180.0,0.001]
[1747058637761,0.201574,104180.0,104170.0,0.44719913]
[1747058637955,0.20159335,104170.0,104160.0,0.44968804]
[1747058638199,0.29744765,104170.0,104160.0,0.44968804]
[1747058639229,0.29744765,104170.0,104160.0,0.00248891]
[1747058639603,0.31304765,104170.0,104160.0,0.00248891]
[1747058639808,0.32934765,104170.0,104160.0,0.00248891]
[1747058640356,0.32934765,104170.0,104160.0,0.00348891]
[1747058640859,0.32854765,104170.0,104160.0,0.00348891]
[1747058641067,0.32854765,104170.0,104160.0,0.00448891]
[1747058641449,0.31304765,104170.0,104160.0,0.00448891]
[1747058641702,0.29744765,104170.0,104160.0,0.45168804]
[1747058642186,0.29744765,104170.0,104160.0,0.44968804]
[1747058642425,0.20259335,104170.0,104160.0,0.64170032]
[1747058642629,0.20259335,104170.0,104160.0,0.44968804]
[1747058643454,0.001,104170.0,104160.0,1.47900021]
[1747058643659,0.02979749,104170.0,104160.0,1.48860017]
[1747058643873,0.03939699,104170.0,104160.0,1.47900021]
[1747058644076,0.21219295,104170.0,104160.0,0.80518804]
[1747058644284,0.30804725,104170.0,104160.0,0.78968804]
[1747058644489,0.30804725,104170.0,104160.0,0.34248891]
[1747058644716,0.30704725,104170.0,104160.0,0.78968804]
[1747058644944,0.21119258,104170.0,104160.0,1.46330012]
[1747058645154,0.21117231,104180.0,104170.0,0.0152]
[1747058645356,0.31662528,104180.0,104170.0,0.64879267]
[1747058645568,0.19193857,104200.0,104170.0,0.66399202]
[1747058645784,0.02879528,104180.0,104170.0,0.24149277]
[1747058645987,0.22077116,104180.0,104170.0,0.20159345]
[1747058646694,0.02879574,104180.0,104170.0,0.22639286]
[1747058646901,0.02879574,104180.0,104160.0,0.34448891]
[1747058646902,0.21119258,104170.0,104160.0,0.34448891]
[1747058647117,0.30704688,104170.0,104160.0,0.79268804]
[1747058647321,0.30704688,104170.0,104160.0,0.79168804]
[1747058647523,0.30704688,104170.0,104160.0,0.78968804]
[1747058647959,0.30704688,104170.0,104160.0,0.00248891]
[1747058648169,0.33864688,104170.0,104160.0,0.00248891]
[1747058648402,0.33864688,104170.0,104160.0,0.00348891]
[1747058649239,0.33864688,104170.0,104160.0,0.00448891]
[1747058649448,0.30704688,104170.0,104160.0,0.45168804]
[1747058649884,0.32224688,104170.0,104160.0,0.00448891]
[1747058650091,0.32224688,104170.0,104160.0,0.00348891]
[1747058650719,0.30704688,104170.0,104160.0,0.44968804]
[1747058650923,0.30804688,104170.0,104160.0,0.44968804]
[1747058652272,0.30804688,104170.0,104160.0,0.64170032]
[1747058652473,0.30804688,104170.0,104160.0,0.44968804]
[1747058653130,0.30804688,104170.0,104160.0,0.46538804]
[1747058653815,0.22179218,104170.0,104160.0,1.47950021]
[1747058654047,0.22179218,104170.0,104160.0,1.03230127]
[1747058654274,0.21219295,104170.0,104160.0,1.02270084]
[1747058654503,0.21219295,104170.0,104160.0,1.03230127]
[1747058654736,0.21119295,104170.0,104160.0,1.44190151]
[1747058654967,0.21119295,104170.0,104160.0,1.41410032]
[1747058655196,0.21119295,104170.0,104160.0,1.42470084]
[1747058655426,0.21119295,104170.0,104160.0,1.90070061]
[1747058655691,0.21119295,104170.0,104160.0,2.1449004]
[1747058655919,0.21115241,104190.0,104180.0,0.20157419]
[1747058656170,0.02879473,104180.0,104170.0,0.58359221]
[1747058656405,0.23036965,104180.0,104170.0,0.58359221]
[1747058656627,0.21117286,104180.0,104170.0,0.55809354]
[1747058656834,0.21117286,104180.0,104170.0,0.54849385]
[1747058657074,0.21117286,104180.0,104170.0,0.55809335]
[1747058657297,0.21117286,104180.0,104170.0,1.0148918]
[1747058657528,0.00959794,104180.0,104170.0,1.03408998]
[1747058657755,0.23036846,104180.0,104170.0,1.02449103]
[1747058658004,0.03939304,104180.0,104170.0,1.03409007]
[1747058658238,0.24096796,104180.0,104170.0,1.03409007]
[1747058658472,0.01059794,104180.0,104170.0,1.04979007]
[1747058658707,0.001,104180.0,104170.0,1.04979007]
[1747058658935,0.02019615,104180.0,104170.0,1.44979007]
[1747058659185,0.02979455,104180.0,104170.0,1.44979007]
[1747058659695,0.04899162,104180.0,104170.0,1.44979007]
[1747058659864,0.04799162,104180.0,104170.0,1.44979007]
[1747058660096,0.00959803,104180.0,104170.0,1.44979007]
[1747058660268,0.01919634,104180.0,104170.0,1.45379007]
[1747058660620,0.01919624,104180.0,104170.0,1.45379007]
[1747058660827,0.01919624,104180.0,104170.0,1.45779007]
[1747058662431,0.00959803,104180.0,104170.0,1.45779007]
[1747058662690,0.02879455,104180.0,104170.0,1.45779007]
[1747058663335,0.02879446,104180.0,104170.0,1.45779007]
[1747058663568,0.03839295,104180.0,104170.0,1.45779007]
[1747058663834,0.02879446,104180.0,104170.0,1.45779007]
[1747058664723,0.2111724,104180.0,104170.0,0.348]
[1747058664946,0.3070267,104180.0,104170.0,0.45519913]
[1747058665167,0.3070267,104180.0,104170.0,0.008]
[1747058665387,0.41672682,104180.0,104170.0,0.008]
[1747058665615,0.43126767,104180.0,104170.0,0.008]
[1747058666078,0.35476755,104180.0,104170.0,0.008]
[1747058666296,0.35476755,104180.0,104170.0,0.004]
[1747058666530,0.35476755,104180.0,104170.0,0.005]
[1747058666931,0.23329335,104170.0,104160.0,0.00248891]
[1747058667190,0.32914765,104170.0,104160.0,0.00248891]
[1747058667338,0.29744765,104170.0,104160.0,0.44968804]
[1747058667735,0.30704706,104170.0,104160.0,0.65130084]
[1747058667945,0.30704706,104170.0,104160.0,0.44968804]
[1747058668142,0.30704706,104170.0,104160.0,0.64170032]
[1747058668368,0.02019799,104170.0,104160.0,1.13280017]
[1747058668580,0.0393969,104170.0,104160.0,1.13280017]
[1747058668825,0.0393969,104170.0,104160.0,0.68560104]
[1747058669041,0.0393969,104170.0,104160.0,1.13280017]
[1747058669274,0.23139149,104170.0,104160.0,1.13280027]
[1747058669483,0.23139149,104170.0,104160.0,1.52320021]
[1747058669735,0.02119854,104170.0,104160.0,1.54240023]
[1747058669888,0.02019799,104170.0,104160.0,1.42120023]
[1747058670141,0.03839663,104170.0,104160.0,1.42120023]
[1747058670333,0.0191979,104170.0,104160.0,1.42520023]
[1747058670534,0.19195833,104190.0,104180.0,0.00959877]
[1747058670759,0.30700823,104190.0,104180.0,0.44719913]
[1747058671992,0.30800823,104190.0,104180.0,0.44719913]
[1747058672624,0.22342016,104210.0,104180.0,0.99507455]
[1747058672625,0.0157,104210.0,104180.0,0.99507455]
[1747058672842,0.01919081,104210.0,104200.0,1.10552967]
[1747058673070,0.30696619,104210.0,104200.0,0.44719913]
[1747058673295,0.30696619,104210.0,104190.0,0.78719913]
[1747058673296,0.20153549,104200.0,104190.0,0.78719913]
[1747058673511,0.29738979,104200.0,104190.0,0.78719913]
[1747058674122,0.29738979,104200.0,104190.0,0.34014041]
[1747058674270,0.29738979,104200.0,104190.0,0.78733954]
[1747058674491,0.30698644,104200.0,104190.0,0.98889439]
[1747058674688,0.29838979,104200.0,104190.0,0.78733954]
[1747058674890,0.28879287,104200.0,104190.0,0.78733954]
[1747058675089,0.30399287,104200.0,104190.0,0.00014041]
[1747058675295,0.31979287,104200.0,104190.0,0.00014041]
[1747058675721,0.32079287,104200.0,104190.0,0.00014041]
[1747058678717,0.28979287,104200.0,104190.0,0.44733954]
[1747058681503,0.10745095,104200.0,104190.0,0.98889429]
[1747058681729,0.32817927,104200.0,104190.0,0.99559654]
[1747058681938,0.30898644,104200.0,104190.0,0.78733954]
[1747058683383,0.30898644,104200.0,104190.0,0.00014041]
[1747058683831,0.34038644,104200.0,104190.0,0.00014041]
[1747058684062,0.48632729,104200.0,104190.0,0.00014041]
[1747058688687,0.30898644,104200.0,104190.0,0.00014041]
[1747058690319,0.30898644,104200.0,104190.0,0.44733954]
[1747058690563,0.19197357,104190.0,104180.0,0.63917455]
[1747058690788,0.28979287,104200.0,104190.0,0.00959785]
[1747058691031,0.21115251,104190.0,104180.0,0.59207089]
[1747058691503,0.02879215,104190.0,104180.0,0.60166892]
[1747058691741,0.30898662,104200.0,104190.0,0.0163]
[1747058691967,0.30798662,104200.0,104190.0,0.0163]
[1747058692097,0.30798662,104200.0,104190.0,0.46349913]
[1747058692309,0.30798662,104200.0,104190.0,0.65545613]
[1747058692535,0.30798662,104200.0,104190.0,0.46349913]
[1747058693154,0.30898662,104200.0,104190.0,0.65545613]
[1747058693391,0.32717937,104200.0,104190.0,1.04024874]
[1747058693595,0.30798653,104200.0,104190.0,1.02105388]
[1747058693806,0.28879287,104200.0,104190.0,1.01145613]
[1747058694012,0.28879287,104200.0,104190.0,0.81949913]
[1747058694409,0.28879287,104200.0,104190.0,0.80349913]
[1747058694619,0.28879287,104200.0,104190.0,1.00505398]
[1747058694828,0.19293857,104200.0,104190.0,1.03964902]
[1747058695058,0.001,104200.0,104190.0,1.49644535]
[1747058695262,0.01059619,104200.0,104190.0,1.04924622]
[1747058695471,0.21213177,104200.0,104190.0,1.35029913]
[1747058695685,0.21213177,104200.0,104190.0,0.60268]
[1747058695900,0.21213177,104200.0,104180.0,0.1324]
[1747058695901,0.20155466,104190.0,104180.0,0.1324]
[1747058696120,0.20155466,104190.0,104180.0,0.4724]
[1747058696328,0.29740896,104190.0,104180.0,0.91959913]
[1747058696562,0.30700653,104190.0,104180.0,1.12117332]
[1747058696760,0.30700653,104190.0,104180.0,0.9993719]
[1747058696963,0.30700653,104190.0,104180.0,1.0148719]
[1747058697146,0.00959729,104190.0,104180.0,1.03306842]
[1747058697393,0.19293857,104200.0,104190.0,0.22374943]
[1747058697394,0.001,104200.0,104190.0,0.22374943]
[1747058697640,0.001,104200.0,104190.0,1.45651132]
[1747058697853,0.001,104200.0,104190.0,1.48530375]
[1747058698103,0.001,104200.0,104190.0,1.88530375]
[1747058698334,0.23028078,104220.0,104210.0,0.55111189]
[1747058698561,0.23028078,104220.0,104210.0,1.02370647]
[1747058698786,0.23042731,104220.0,104210.0,1.01411102]
[1747058699015,0.22083278,104220.0,104210.0,1.01411102]
[1747058699241,0.21123816,104220.0,104210.0,1.0141112]
[1747058699466,0.21223816,104220.0,104210.0,1.0141112]
[1747058699919,0.20264326,104220.0,104210.0,1.0141112]
[1747058700133,0.20264326,104220.0,104210.0,0.9983112]
[1747058700359,0.19304827,104220.0,104210.0,0.79679513]
[1747058700575,0.19304827,104220.0,104210.0,1.0148112]
[1747058700809,0.19404827,104220.0,104210.0,1.04060702]
[1747058701029,0.19404827,104220.0,104210.0,1.05970994]
[1747058701268,0.19404827,104220.0,104210.0,1.03092239]
[1747058701475,0.19404827,104220.0,104210.0,1.05011394]
[1747058702002,0.22283241,104220.0,104210.0,1.05970957]
[1747058702226,0.22283241,104220.0,104210.0,1.05011394]
[1747058702462,0.21323797,104220.0,104210.0,0.82940632]
[1747058702707,0.21323797,104220.0,104210.0,1.01472239]
[1747058702922,0.002,104230.0,104220.0,0.59238588]
[1747058703153,0.05653288,104250.0,104240.0,0.57624354]
[1747058703397,0.36341816,104250.0,104240.0,0.80279913]
[1747058703618,0.35382639,104250.0,104240.0,0.78719913]
[1747058703850,0.12663026,104250.0,104240.0,1.00784267]
[1747058704069,0.04036717,104250.0,104240.0,1.02414267]
[1747058704565,0.002,104250.0,104240.0,1.8713418]
[1747058704813,0.00958873,104280.0,104270.0,0.22058034]
[1747058705043,0.14394605,104280.0,104270.0,0.67736931]
[1747058705253,0.00014661,104280.0,104270.0,1.48006862]
[1747058705493,0.00014661,104280.0,104270.0,1.49626862]
[1747058705663,0.00973544,104280.0,104270.0,1.44906949]
[1747058705923,0.01932454,104280.0,104270.0,1.44906949]
[1747058706131,0.00014661,104280.0,104270.0,1.44906949]
[1747058706364,0.00973553,104280.0,104270.0,1.44906949]
[1747058706581,0.01932463,104280.0,104270.0,1.44906949]
[1747058706765,0.00973553,104280.0,104270.0,1.44906949]
[1747058707120,0.03191401,104280.0,104270.0,1.44906949]
[1747058707617,0.02891392,104280.0,104270.0,1.44906949]
[1747058707775,0.00973544,104280.0,104270.0,1.71154949]
[1747058707938,0.02891383,104280.0,104270.0,1.71154949]
[1747058708872,0.04809268,104280.0,104270.0,1.71154949]
[1747058709109,0.00973544,104280.0,104270.0,1.71154949]
[1747058709560,0.01932445,104280.0,104270.0,1.71154949]
[1747058709763,0.01932445,104280.0,104270.0,1.71354949]
[1747058710233,0.02891364,104280.0,104270.0,1.71354949]
[1747058710643,0.00973544,104280.0,104270.0,1.71354949]
[1747058710860,0.011588,104290.0,104280.0,0.56055891]
[1747058711077,0.03076464,104290.0,104280.0,0.59235891]
[1747058711314,0.21294995,104290.0,104280.0,0.81899913]
[1747058711525,0.21294995,104290.0,104280.0,1.38858002]
[1747058711734,0.21294995,104290.0,104280.0,1.39816949]
[1747058711912,0.21294995,104290.0,104280.0,1.66028949]
[1747058712120,0.21294995,104290.0,104280.0,1.66228912]
[1747058712735,0.21294995,104290.0,104280.0,1.40016912]
[1747058712985,0.02117701,104290.0,104280.0,1.67183813]
[1747058713163,0.02117701,104290.0,104280.0,1.68142705]
[1747058713342,0.02117701,104290.0,104280.0,1.69093338]
[1747058713947,0.21294995,104290.0,104280.0,1.67175545]
[1747058714110,0.03076565,104290.0,104280.0,1.68134437]
[1747058714511,0.02117701,104290.0,104280.0,1.68134437]
[1747058714733,0.21294995,104290.0,104280.0,1.68134437]
[1747058714937,0.30880425,104290.0,104280.0,0.742]
[1747058715212,0.30880425,104290.0,104280.0,0.54338089]
[1747058715405,0.29921579,104290.0,104280.0,0.78919913]
[1747058715606,0.29921579,104290.0,104280.0,0.99058002]
[1747058716007,0.11703057,104290.0,104280.0,1.0193476]
[1747058716242,0.12661903,104290.0,104280.0,1.0193476]
[1747058716454,0.13620758,104290.0,104280.0,1.0193476]
[1747058716854,0.11703057,104290.0,104280.0,1.0193476]
[1747058717070,0.11703057,104290.0,104280.0,1.0352476]
[1747058717247,0.32798061,104290.0,104280.0,1.0193476]
[1747058718693,0.11703057,104290.0,104280.0,1.0193476]
[1747058718893,0.12661903,104290.0,104280.0,1.0193476]
[1747058719098,0.13620758,104290.0,104280.0,1.0193476]
[1747058719302,0.13620758,104290.0,104280.0,0.57214847]
[1747058719542,0.002,104290.0,104280.0,0.58784847]
[1747058719765,0.002,104290.0,104280.0,1.00384847]
[1747058719960,0.03076446,104290.0,104280.0,1.00384847]
[1747058720313,0.22253804,104290.0,104280.0,0.95297036]
[1747058720529,0.22253786,104290.0,104280.0,0.96255974]
[1747058720742,0.21294977,104290.0,104280.0,0.96255974]
[1747058720956,0.21294977,104290.0,104280.0,0.98173804]
[1747058721172,0.22253832,104290.0,104280.0,0.9817374]
[1747058721589,0.22253832,104290.0,104280.0,0.57214848]
[1747058721807,0.31839262,104290.0,104280.0,0.002]
[1747058722010,0.33950425,104290.0,104280.0,0.002]
[1747058722440,0.32440425,104290.0,104280.0,0.002]
[1747058723058,0.34000425,104290.0,104280.0,0.002]
[1747058723470,0.30880425,104290.0,104280.0,0.002]
[1747058724085,0.11703131,104290.0,104280.0,0.21297018]
[1747058724288,0.12661885,104290.0,104280.0,0.23014829]
[1747058724493,0.01158791,104290.0,104280.0,0.57014829]
[1747058724696,0.04235264,104290.0,104280.0,0.57014829]
[1747058724901,0.004,104290.0,104280.0,0.57014829]